Cogmind - Beta 14 @@@ ROGUE MODE // 2024.11.16 @ 11:09:44 Player: Fangrelle Result: Destroyed by D-53 Grenadier with Mini Grenade Launcher Performance ------------- Evolutions (0) 0 Regions Visited (2) 400 Robots Destroyed (34) 170 Value Destroyed (716) 716 Prototype IDs (2) 40 Alien Tech Used (0) 0 Bonus (0) 0 TOTAL SCORE: 1326 Bonus ------- None Cogmind --------- Core Integrity 0/250 Matter 80/300 Energy 280/280 System Corruption 3% Temperature Cool (0) Movement Rolling (130) Ox2 Location -10/Mines Parts ------- > --- POWER (1) -------- Heavy Ion Engine > --- PROPULSION (2) --- Compact Wheel > --- UTILITY (2) ------ High-capacity Storage Unit > --- WEAPON (2) ------- (None) > --- INVENTORY (20) --- Heavy Ion Engine Heavy Ion Engine Light Treads Light Treads Large Storage Unit High-capacity Battery (250) High-capacity Matter Pod (0) Signal Interpreter Tractor Beam Medium Laser Assault Rifle Assault Rifle Datajack Mining Laser Flail Flail Peak State ------------ > --- POWER ------------ Heavy Ion Engine > --- PROPULSION ------- Light Treads Compact Wheel > --- UTILITY ---------- Large Storage Unit Light Armor Plating > --- WEAPON ----------- Flail Flail > --- INVENTORY -------- Ion Engine Heavy Ion Engine Heavy Ion Engine Heavy Ion Engine Compact Wheel Medium Laser Assault Rifle Assault Rifle Grenade Launcher [Rating: 12] Favorites ----------- Power Heavy Ion Engine Engine Heavy Ion Engine Propulsion Light Treads Treads Light Treads Leg Aluminum Leg Wheel Compact Wheel Utility Light Armor Plating Storage Large Storage Unit Processor Targeting Computer Protection Light Armor Plating Weapon Assault Rifle Ballistic Gun Assault Rifle Launcher Grenade Launcher Impact Weapon Flail Build | -11 -10 -10 ------- Run | Yrd Mat Min Slots Evolved . | . . . Power . | . . . Propulsion . | . . . Utility . | . . . Weapon . | . . . Parts Attached 24 | . 21 3 Power 2 | . 2 . Engine 2 | . 2 . Core . | . . . Reactor . | . . . Propulsion 6 | . 4 2 Treads 3 | . 3 . Leg . | . . . Wheel 3 | . 1 2 Hover . | . . . Flight . | . . . Utility 5 | . 5 . Device . | . . . Storage 2 | . 2 . Processor 1 | . 1 . Hackware . | . . . Protection 2 | . 2 . Artifact . | . . . Weapon 11 | . 10 1 Energy Gun . | . . . Energy Cannon . | . . . Ballistic Gun 4 | . 4 . Ballistic Cannon . | . . . Launcher 4 | . 3 1 Special Weapon . | . . . Impact Weapon 3 | . 3 . Slashing Weapon . | . . . Piercing Weapon . | . . . Special Melee Weapon . | . . . Unidentified Prototypes 1 | . 1 . Corrupted Parts 1 | . 1 . System Corruption 2 | . 2 . Parts Lost 7 | . 3 4 Power . | . . . Propulsion 2 | . 1 1 Utility 3 | . 2 1 Weapon 2 | . . 2 Highest Loss Streak 4 | . 1 4 To Critical Strikes . | . . . Average Slot Usage (%) 95 | . 95 98 Engine 14 | . 14 14 Treads 20 | . 20 24 Wheel 7 | . 7 3 Storage 14 | . 14 14 Protection 10 | . 9 14 Ballistic Gun 18 | . 19 . Launcher 3 | . 2 26 Impact Weapon 5 | . 6 . Peak Build Rating 12 | . 12 11 Average Rating 9 | . 9 10 On Entrance 7 | 6 6 11 Naked Turns . | . . . Heaviest Build 57 | 14 56 57 Greatest Support 40 | 20 40 40 Greatest Overweight (x) 3 | . 2 3 Average Overweight (x) . | . . 1 Largest Inventory Capacity 20 | . 20 20 Average Capacity 15 | . 15 20 Most Carried 16 | . 16 16 Average Carried 9 | . 8 16 Final Capacity 20 | 8 20 20 Final Carried 16 | 6 16 16 Class Distribution -------------------- 100% | Mutant Dominant Class ---------------- Mutant | -10/Materials Mutant | -10/Mines Resources | -11 -10 -10 ----------- Run | Yrd Mat Min Matter Collected 703 | 200 492 11 Remotely . | . . . Salvage Created 728 | . 698 30 Parts 48 | . 44 4 Haulers Intercepted 2 | . 2 . Recyclers Shooed 4 | . 4 . Parts Field Recycled . | . . . Retrieved Matter . | . . . Parts Self-Destructed . | . . . Prevented . | . . . Kills | -11 -10 -10 ------- Run | Yrd Mat Min Combat Hostiles Destroyed 22 | . 20 2 Guns 15 | . 15 . AOE 7 | . 5 2 Classes Destroyed 8 | . 7 1 Worker 3 | . 2 1 Builder 2 | . 1 1 Tunneler 1 | . . 1 Hauler 2 | . 2 . Recycler 1 | . 1 . Watcher 3 | . 3 . Swarmer 9 | . 9 . Grunt 13 | . 11 2 Best Kill Streak 6 | . 6 5 Combat Bots Only 5 | . 5 2 Max Kills in Single Turn 2 | . 2 2 Gunslinging . | . . . Exploded 2 | . 2 1 Melee . | . . . Uniques/NPCs Destroyed . | . . . Combat | -11 -10 -10 -------- Run | Yrd Mat Min Hostile Shots Fired 113 | . 97 16 Missed 28 | . 26 2 Damage Taken 1218 | . 861 357 Core 255 | . 118 137 Absorbed by Shields . | . . . Core Remaining (%) 100 | 100 . . Volleys Fired 64 | . 60 4 Largest 2 | . 2 2 Hottest 60 | . 50 60 Shots Fired 128 | . 120 8 Gun 111 | . 111 . Cannon . | . . . Launcher 17 | . 9 8 Special . | . . . Kinetic 111 | . 111 . Thermal . | . . . Explosive 17 | . 9 8 Electromagnetic . | . . . Robot Hit Streak 7 | . 7 3 Robot Miss Streak 3 | . 3 . Penetration Max . | . . . Secondary Targets 3 | . 3 . Max Gunslinging Chain 1 | . 1 . Shots Hit Robots 73 | . 72 1 Core Hits 50 | . 41 9 Critical Kills . | . . . Critical Parts Destroyed . | . . . Critical Strikes . | . . . Melee Attacks 13 | . 13 . Impact 13 | . 13 . Slashing . | . . . Piercing . | . . . Sneak Attacks 1 | . 1 . Combat Hostiles . | . . . Follow-up Attacks . | . . . Damage Inflicted 2029 | . 1642 387 Guns 866 | . 866 . Cannons . | . . . Explosions 956 | . 569 387 Melee 201 | . 201 . Ramming 6 | . 6 . Kinetic 866 | . 866 . Thermal 164 | . 164 . Explosive 792 | . 405 387 Electromagnetic . | . . . Impact 201 | . 201 . Slashing . | . . . Piercing . | . . . Highest Corruption 3 | . 3 3 Average Corruption 2 | . 2 3 Corruption Purged . | . . . Corruption Blocked . | . . . Effects 11 | . 9 2 Message Errors 4 | . 3 1 Matter Fused 2 | . 1 1 Energy Discharges 3 | . 3 . Data Loss (minor) 2 | . 2 . Overload Shots . | . . . Overflow Damage 72 | . 72 . Projectiles . | . . . Explosions 29 | . 29 . Melee 43 | . 43 . Knockbacks . | . . . Impact . | . . . Kinetic . | . . . Secondary . | . . . Self-Inflicted Damage 68 | . 68 . Shots 3 | . 3 . Rammed 1 | . 1 . Targets Rammed 1 | . 1 . Kicked . | . . . Crushed . | . . . Highest Temperature 96 | . 12 96 Average Temperature 19 | . 4 52 Received Heat Transfer 423 | . 375 48 Siege Activations . | . . . Robots Corrupted 1 | . 1 . Combat Hostiles . | . . . Parts Fried 1 | . 1 . Impact Corruptions 2 | . 2 . Robots Melted . | . . . Combat Hostiles . | . . . Parts Melted . | . . . Heat Transferred 100 | . 100 . Parts Sabotaged . | . . . Parts Stolen . | . . . Parts Stripped . | . . . Power Chain Reactions . | . . . Alert | -11 -10 -10 ------- Run | Yrd Mat Min Peak Influence 360 | . 360 178 Initial 87 | . . 87 Average 195 | . 199 121 Maximum Alert Level 1 | . 1 . Low Security (%) 58 | . 55 100 Level 1 41 | . 44 . Level 2 . | . . . Level 3 . | . . . Level 4 . | . . . Level 5 . | . . . High Security . | . . . Max Security . | . . . Squads Dispatched 5 | . 5 . Investigation 5 | . 5 . Extermination . | . . . Reinforcement . | . . . Assault . | . . . Garrison . | . . . Intercept . | . . . Searches Triggered . | . . . Construction Impeded . | . . . Haulers Reinforced . | . . . Active Scanning Responses . | . . . Cargo Convoy Interrupts . | . . . Stealth | -11 -10 -10 --------- Run | Yrd Mat Min Distress Signals . | . . . Communications Jammed . | . . . Distress Signals . | . . . Times Spotted 33 | . 25 8 Peak Tracking Total 6 | . 5 6 Tactical Retreats 1 | . 1 . Traps | -11 -10 -10 ------- Run | Yrd Mat Min Traps Triggered 1 | . 1 . Indirectly . | . . . Trap Hack Attempts . | . . . Triggered . | . . . Disarmed . | . . . Reprogrammed . | . . . Reused . | . . . Traps Extracted . | . . . Installed . | . . . Triggered . | . . . Machines | -11 -10 -10 ---------- Run | Yrd Mat Min Machines Disabled 8 | . 8 . Max in Single Turn 6 | . 6 . Machines Repaired . | . . . Machines Dismantled . | . . . Machines Sabotaged . | . . . Overloaded Fab Kills . | . . . Hacking | -11 -10 -10 --------- Run | Yrd Mat Min Machines Accessed 9 | . 9 . Terminals 7 | . 7 . Fabricators . | . . . Repair Stations . | . . . Recycling Units 2 | . 2 . Scanalyzers . | . . . Garrison Access . | . . . Total Hacks 41 | . 41 . Successful 26 | . 26 . Failed 14 | . 14 . Catastrophic . | . . . Database Lockouts 1 | . 1 . Manual 31 | . 31 . Terminals 33 | . 33 . Fabricators . | . . . Repair Stations . | . . . Recycling Units 8 | . 8 . Scanalyzers . | . . . Garrison Access . | . . . Terminal Hacks 9 | . 9 . Robot Analysis 4 | . 4 . Prototype ID Bank 1 | . 1 . Alert Level 1 | . 1 . Locate Traps 1 | . 1 . Dispatch Records 1 | . 1 . Hauler Manifests 1 | . 1 . Fabricator Hacks . | . . . Repair Station Hacks . | . . . Recycling Unit Hacks 3 | . 3 . Report Inventory 2 | . 2 . Retrieve Components 1 | . 1 . Scanalyzer . | . . . Garrison Access Hacks . | . . . Unauthorized Hacks 14 | . 14 . Terminals 12 | . 12 . Assimilate 3 | . 3 . Botnet 7 | . 7 . Operators 1 | . 1 . Skim 1 | . 1 . Fabricators . | . . . Repair Stations . | . . . Recycling Units 2 | . 2 . Tunnel 2 | . 2 . Scanalyzers . | . . . Garrison Access . | . . . Data Cores Recovered . | . . . Used . | . . . Hacking Detections 8 | . 8 . Full Trace Events 2 | . 2 . Feedback Events 1 | . 1 . Corruption 1 | . 1 . Feedback Blocked . | . . . Robot Schematics Acquired . | . . . Robots Built . | . . . Authchips . | . . . Time . | . . . Total Robot Build Rating . | . . . Part Schematics Acquired . | . . . Parts Built . | . . . Authchips . | . . . Time . | . . . Total Part Build Rating . | . . . Parts Repaired . | . . . Time . | . . . Parts Recycled . | . . . Recycled Matter . | . . . Retrieved Matter . | . . . Retrieved Components 10 | . 10 . Parts Scanalyzed . | . . . Part Schematics Acquired . | . . . Parts Damaged . | . . . Bothacking | -11 -10 -10 ------------ Run | Yrd Mat Min Used RIF Installer . | . . . Robots Hacked . | . . . Non-combat . | . . . Combat . | . . . Robot Hacks Applied . | . . . Relay Couplers Released . | . . . Fabnet Peak Effective % . | . . . Robots Rewired . | . . . Allies Hacked . | . . . Hacks Repelled . | . . . Allies | -11 -10 -10 -------- Run | Yrd Mat Min Total Allies . | . . . Largest Group . | . . . Highest-Rated Group . | . . . Highest-Rated Ally . | . . . Total Orders . | . . . Ally Attacks . | . . . Total Damage . | . . . Kills . | . . . Allies Corrupted . | . . . Allies Melted . | . . . Intel | -11 -10 -10 ------- Run | Yrd Mat Min Robot Analysis Total 3 | . 3 . Derelict Logs Recovered . | . . . Drone Launches . | . . . Drone Recoveries . | . . . Exploration | -11 -10 -10 ------------- Run | Yrd Mat Min Turns Passed 2195 | . 2075 120 Spaces Moved 759 | 1 709 49 Core . | . . . Treads 746 | . 709 37 Legs 1 | 1 . . Wheels 12 | . . 12 Hover . | . . . Flight . | . . . Fastest Speed 115 | 120 160 115 Average Speed 224 | 120 225 211 Slowest Speed 320 | 120 320 240 Overloaded Moves . | . . . Propulsion Burnouts . | . . . Robots Hopped . | . . . Cave-ins Triggered . | . . . Exploration Rate (%) 38 | 2 96 18 Regions Visited 2 Branch Regions 1 Pre-discovered Areas 2 | . 2 . Known Exits Taken . | . . . Unknown Exits Taken 2 | 1 1 . Scrap Searched . | . . . Spaces Dug 21 | . 10 11 Terrain Destroyed 100 | . 60 40 Melee 5 | . 5 . Projectile . | . . . AOE 95 | . 55 40 Terrain Rammed . | . . . Walls Destroyed . | . . . Machines Disabled . | . . . Actions | -11 -10 -10 --------- Run | Yrd Mat Min Total 1098 | . 1042 56 Wait 216 | . 216 . Move 757 | . 708 49 Hop . | . . . Pick Up 15 | . 15 . Fast Attach 6 | . 6 . Attach 4 | . 4 . Detach 1 | . 1 . Swap 14 | . 11 3 Drop 8 | . 8 . Fire 64 | . 60 4 Melee 12 | . 12 . Ram . | . . . Kick . | . . . Crush 1 | . 1 . Escape Stasis . | . . . Rewire . | . . . Trap . | . . . Miscellaneous . | . . . Route ------- -11/Scrapyard -10/Materials (discovered 4 exits: [*Mat x3] / [*Min]) -10/Mines History --------- Turn | Location | Event 1 | -11/Scrapyard | Discovered new exit (range 0) 1 | -11/Scrapyard | Entered Materials 318 | -10/Materials | Build established: Mutant 956 | -10/Materials | Discovered new exit (range 16) 1208 | -10/Materials | Central database locked down 1224 | -10/Materials | Discovered new exit (range 3) 1541 | -10/Materials | Discovered new exit (range 11) 1827 | -10/Materials | Discovered new exit (range 4) 2076 | -10/Materials | Entered Mines 2150 | -10/Mines | Core integrity fell below 50% 2165 | -10/Mines | Assembled infested the area 2170 | -10/Mines | Assisted by a Guerilla fighting off Assembled 2196 | -10/Mines | Destroyed by D-53 Grenadier with Mini Grenade Launcher Last Messages --------------- 02179_ C-30 ARC bursts open, deploying its payload. 02179_ D-53 Grenadier unfolds itself. 02180_ K-01 Serf collects debris. 02182_ U-05 Engineer builds a Wall. 02186_ Grenade Launcher destroyed. 02186_ K-01 Serf destroyed. 02186_ U-05 Engineer lays Concrete. 02187_ U-05 Engineer builds a Wall. 02188_ as-91902 suffers critical hit (Destroy). 02188_ as-91902 knocked back. 02188_ as-56100 destroyed. 02189_ as-91902 destroyed. 02191_ The unstable cave ceiling collapses. 02191_ SZ-GR0(h) destroyed. 02191_ U-05 Engineer lays Concrete. 02192_ Lgt. Armor Plating destroyed. 02192_ Com. Wheel destroyed. 02192_ U-05 Engineer destroyed. 02195_ The unstable cave ceiling collapses. 02196_ Grenade Launcher destroyed. Map ----- +----------------------------------------------------+ | ?????????????????????????????????????????????? | | ?????????????????????????????????????????????? | | ?????????????????????????????????????????????? | | ?????????????????????????????????????????????? | | ?????????????????????????????????????????????? | | ?????????????????????????????????????????????? | | ?????????????????????????????????????????????? | | ?????????????????????????????????????????????? | | ?????????????????????????????????????????????? | | ?????????????????????????????????????????????? | | ?????????????????????????????????????????????? | | ?????????????????????????????????????????????? | | ??????????????????? ?????????????????????????? | | ?????????????????? ????????????????????????? | | ??????????????????# %####??????????#####?????? | | ??????????????????? % #;#?????????? ??????? | | ???????????????????# #####?????? ??????? | | ????????????????????# a ##????? #???????? | | ?????????????????????# ###### #???????? | | ??????????????#####?## # # ###?????? | | ??????######### ### # # ##??? | | ?###### # ! ## " | | ?# =%* "% | | ?# #### # # " | | ?# #??# # ## d | | ?# #??# # ### @ d | | ?# #??# # ## % | | ?# #??# # ### # = ## | | ?########??# # #?### ##???? | | ???????????# # #???# # #????? | | ???????????# # #???### #### ##????? | | ???????????# #?????#####??## ##?????? | | ???????????# #?????????????## ##??????? | | ????????????#####????????????????#####???????? | | ?????????????????????????????????????????????? | | ?????????????????????????????????????????????? | | | | | | | | | | | | | | | | | | | | | | | | | | | | | +----------------------------------------------------+ Best States ------------- Heat Dissipation 25 Energy Generation 14 Energy Capacity 280 Matter Stores 300 Matter Capacity 300 Sight Range 16 Terrain Scan Density 10 Armor Coverage 150 Evasion (%) 40 Targeting Accuracy 5 Recoil Reduction 2 Item Schematics ----------------- None Robot Schematics ------------------ None Fabricated ------------ Nothing Alien Tech Used ----------------- None Achievements -------------- None Challenges ------------ None Game ------ Seed EnergyTimingRigger Manual? 0 Play Time 00:12:50 Cumulative 90.0 hours Start 2024.11.16 @ 10:57:58 End 2024.11.16 @ 11:09:44 Sessions 1 Manual Loads 0 Difficulty Rogue Special Mode None Game No. 158 Rogue 158 Adventurer 0 Explorer 0 Win Type - Total 0 Types 0/0/0/0/0/0/0/0/0 Lore% 41 Gallery% 36 Achievement% 34 Wizard Run 0 Options --------- Layout 0 ASCII 0 Keyboard 0 Movement Mouse Keybinds 0 Fullscreen 1 Font 24/Cog Map View 91x25 Zoom Use 95% Tactical HUD 1 Map Filters NONE Filters NONE Steam 1 RUN: a9c4b617-6ddc-4924-a8d7-a9bf2c3153a7